bitfinex/quotes_BTCUSD_20250624
["timestamp","ask_amount","ask_price","bid_price","bid_amount"]
[1750773747645,0.015,105150.0,105140.0,1.18486782]
[1750773747854,0.015,105150.0,105140.0,1.70249168]
[1750773748003,0.015,105150.0,105140.0,1.18486782]
[1750773748229,0.015,105150.0,105140.0,1.22086782]
[1750773748409,0.015,105150.0,105140.0,1.43430782]
[1750773748610,0.015,105150.0,105140.0,1.22086782]
[1750773748811,0.015,105150.0,105140.0,1.38876782]
[1750773749157,0.355,105150.0,105140.0,1.36640782]
[1750773752730,0.355,105150.0,105140.0,1.15304782]
[1750773753004,0.9247538,105150.0,105140.0,0.72451554]
[1750773753225,1.13685826,105150.0,105140.0,0.66123556]
[1750773753388,1.14636848,105150.0,105140.0,0.67074623]
[1750773753590,1.13336848,105150.0,105140.0,0.66974623]
[1750773753844,1.12385871,105150.0,105140.0,0.66023556]
[1750773754021,1.11983854,105150.0,105140.0,0.44248]
[1750773754196,1.11983854,105150.0,105140.0,0.65172435]
[1750773754408,1.10983854,105150.0,105140.0,0.64121359]
[1750773754615,1.10983854,105150.0,105140.0,0.22828]
[1750773754616,1.10483854,105150.0,105140.0,0.22828]
[1750773754822,1.10483854,105150.0,105140.0,0.4414]
[1750773755260,1.10483854,105150.0,105140.0,0.45344]
[1750773755631,1.10483854,105150.0,105140.0,0.05888]
[1750773756037,1.10483854,105150.0,105140.0,0.01189064]
[1750773756237,1.6224624,105150.0,105140.0,0.01189064]
[1750773756442,1.6224624,105150.0,105140.0,0.007]
[1750773756658,1.10483854,105150.0,105140.0,0.007]
[1750773756870,1.10583854,105150.0,105140.0,0.007]
[1750773757270,1.10683854,105150.0,105140.0,0.023]
[1750773758671,1.90090511,105150.0,105140.0,0.023]
[1750773759055,1.95090511,105150.0,105140.0,0.023]
[1750773759250,2.09637506,105150.0,105140.0,0.023]
[1750773759453,2.00090511,105150.0,105140.0,0.023]
[1750773759867,1.21688125,105150.0,105140.0,0.023]
[1750773760069,1.10683854,105150.0,105140.0,0.023]
[1750773760484,0.58921468,105150.0,105140.0,0.26010256]
[1750773760661,0.22731468,105150.0,105140.0,0.25126596]
[1750773760878,1.08393854,105150.0,105140.0,0.05388]
[1750773761020,1.10693854,105150.0,105140.0,0.2536135]
[1750773761223,1.10593854,105150.0,105140.0,0.004]
[1750773761444,1.10593854,105150.0,105140.0,0.04888]
[1750773761657,1.10593854,105150.0,105140.0,0.05888]
[1750773762811,1.10593854,105150.0,105140.0,0.01]
[1750773763019,0.59458398,105120.0,105110.0,0.04692614]
[1750773763224,1.11220784,105120.0,105110.0,0.04692614]
[1750773763431,1.11220784,105120.0,105110.0,0.23720299]
[1750773763637,1.11220784,105120.0,105110.0,0.04692614]
[1750773763638,1.10269536,105120.0,105110.0,0.04692614]
[1750773763839,1.13127236,105120.0,105110.0,0.04692614]
[1750773764058,1.13127236,105120.0,105110.0,0.23720299]
[1750773764269,1.10777236,105120.0,105110.0,0.24671665]
[1750773764480,1.10877236,105120.0,105110.0,0.26471665]
[1750773764919,0.5693485,105120.0,105110.0,0.27423013]
[1750773765135,0.39811444,105120.0,105110.0,0.29325672]
[1750773765358,0.39811444,105120.0,105110.0,0.44325672]
[1750773765563,0.59788603,105120.0,105110.0,0.44325672]
[1750773765764,0.39811444,105120.0,105110.0,0.43374352]
[1750773765973,0.59788612,105120.0,105110.0,0.40520299]
[1750773766188,0.59788612,105120.0,105110.0,0.4242304]
[1750773766401,0.369577,105120.0,105110.0,0.68875894]
[1750773766623,0.029577,105120.0,105110.0,0.88335894]
[1750773767664,0.02002469,105120.0,105110.0,0.86125894]
[1750773767878,0.03904983,105120.0,105110.0,0.83875894]
[1750773768084,0.73742023,105120.0,105110.0,0.5464461]
[1750773768296,1.10052023,105120.0,105110.0,0.56547315]
[1750773768512,1.09100784,105120.0,105110.0,0.53693244]
[1750773768734,1.10419536,105120.0,105110.0,0.01804614]
[1750773768942,1.27143536,105120.0,105110.0,0.01804614]
[1750773769607,1.28070646,105120.0,105110.0,0.01804614]
[1750773770032,1.39074917,105120.0,105110.0,0.01804614]
[1750773770242,1.44074917,105120.0,105110.0,0.01804614]
[1750773772986,1.39074917,105120.0,105110.0,0.01804614]
[1750773773207,1.44074917,105120.0,105110.0,0.01804614]
[1750773773420,1.09076646,105120.0,105110.0,0.01804614]
[1750773773638,0.71839536,105120.0,105110.0,0.22735022]
[1750773774052,0.71839536,105120.0,105110.0,0.2368637]
[1750773774257,1.07742068,105120.0,105110.0,0.24637699]
[1750773774474,1.07742068,105120.0,105110.0,0.01804614]
[1750773774695,1.1120082,105120.0,105110.0,0.01804614]
[1750773775324,1.0896082,105120.0,105110.0,0.21783683]
[1750773775440,1.05839545,105120.0,105110.0,0.21783683]
[1750773775664,1.04888261,105120.0,105110.0,0.02755998]
[1750773775865,1.04888261,105120.0,105110.0,0.21783683]
[1750773776075,1.04888261,105120.0,105110.0,0.01804614]
[1750773776500,1.09298261,105120.0,105110.0,0.01804614]
[1750773777381,1.09298261,105120.0,105110.0,0.20832299]
[1750773777651,1.07058261,105120.0,105110.0,0.01804614]
[1750773778845,1.09268261,105120.0,105110.0,0.01804614]
[1750773779063,1.25272532,105120.0,105110.0,0.01804614]
[1750773779409,1.25272532,105120.0,105100.0,0.002]
[1750773779410,0.60053136,105110.0,105100.0,0.002]
[1750773779610,1.38073708,105110.0,105100.0,0.002]
[1750773780164,1.40932008,105110.0,105100.0,0.002]
[1750773781413,1.41032008,105110.0,105100.0,0.008]
[1750773781742,1.97894394,105110.0,105100.0,0.008]
[1750773781995,1.41132008,105110.0,105100.0,0.008]
[1750773782195,1.46132008,105110.0,105100.0,0.008]
[1750773782402,0.60308708,105110.0,105100.0,0.21732416]
[1750773782613,0.04961023,105110.0,105100.0,0.38635265]
[1750773782985,0.030583,105110.0,105100.0,0.41886694]
[1750773783142,0.04009648,105110.0,105100.0,0.41886694]
[1750773783465,0.370583,105110.0,105100.0,0.41886694]
[1750773783665,0.39912279,105110.0,105100.0,0.41886694]
[1750773783909,1.11653789,105110.0,105100.0,0.21732416]
[1750773784104,1.12061112,105110.0,105100.0,0.05508]
[1750773784234,1.13439755,105110.0,105100.0,0.05508]
[1750773785881,1.30215755,105110.0,105100.0,0.05508]
[1750773786137,1.27885755,105110.0,105100.0,0.05508]
[1750773786727,1.27885755,105110.0,105100.0,0.008]
[1750773786728,1.33849276,105110.0,105100.0,0.008]
[1750773786931,1.24314026,105110.0,105100.0,0.008]
[1750773787974,0.7255164,105110.0,105100.0,0.008]
[1750773788116,1.24314026,105110.0,105100.0,0.008]
[1750773789827,1.10158371,105110.0,105100.0,0.19829495]
[1750773790026,0.40863636,105110.0,105100.0,0.36732398]
[1750773790256,1.09751112,105110.0,105100.0,0.158]
[1750773790468,1.09751112,105110.0,105100.0,0.35780969]
[1750773790882,1.08799746,105110.0,105100.0,0.158]
[1750773791095,1.08799746,105110.0,105100.0,0.35780969]
[1750773791301,1.08799746,105110.0,105100.0,0.36732434]
[1750773791527,1.10702478,105110.0,105100.0,0.38635301]
[1750773792021,1.0975113,105110.0,105100.0,0.36732434]
[1750773792229,0.38009675,105110.0,105100.0,0.36732434]
[1750773792435,1.10702405,105110.0,105100.0,0.39843872]
[1750773793053,0.9167472,105110.0,105100.0,0.40795283]
[1750773793304,1.1070246,105110.0,105100.0,0.38892434]
[1750773793506,1.1070246,105110.0,105100.0,0.38635337]
[1750773793939,1.1070246,105110.0,105100.0,0.3768389]
[1750773794152,1.1288246,105110.0,105100.0,0.158]
[1750773794340,1.14201112,105110.0,105100.0,0.20508]
[1750773795210,1.14201112,105110.0,105100.0,0.05508]
[1750773796323,1.09751112,105110.0,105100.0,0.24537495]
[1750773796528,0.030583,105110.0,105100.0,0.81327791]
[1750773796714,0.370583,105110.0,105100.0,0.90877977]
[1750773796933,0.370583,105110.0,105100.0,0.93097977]
[1750773797136,0.38009611,105110.0,105100.0,0.93097977]
[1750773797330,0.370583,105110.0,105100.0,0.93097977]
[1750773797546,0.39912288,105110.0,105100.0,0.93097977]
[1750773797771,0.40863654,105110.0,105100.0,0.93097977]
[1750773798494,0.59891339,105110.0,105100.0,0.92146566]
[1750773798698,1.10702469,105110.0,105100.0,0.50331155]
[1750773798945,1.10702469,105110.0,105100.0,0.008]
[1750773798946,1.08799746,105110.0,105100.0,0.008]
[1750773799161,1.13309746,105110.0,105100.0,0.22272]
[1750773799316,1.13309746,105110.0,105100.0,0.05508]
[1750773799780,1.14763831,105110.0,105100.0,0.008]
[1750773799987,1.81076403,105110.0,105100.0,0.008]
[1750773800394,1.38685643,105110.0,105100.0,0.008]
[1750773802152,1.33685643,105110.0,105100.0,0.008]
[1750773805963,1.43685643,105110.0,105100.0,0.008]
[1750773806649,0.63490951,105100.0,105090.0,0.0002]
[1750773806852,1.52753879,105100.0,105090.0,0.00024615]
[1750773807430,1.71624535,105100.0,105090.0,0.00024615]
[1750773807640,1.72751594,105100.0,105090.0,0.00024615]
[1750773807852,1.73051594,105100.0,105090.0,0.00124615]
[1750773808026,1.73051569,105100.0,105090.0,0.00124615]
[1750773808434,1.73051572,105100.0,105090.0,0.00124615]
[1750773808642,1.62077526,105100.0,105090.0,0.00024615]
[1750773808866,1.62077526,105100.0,105090.0,0.00124615]
[1750773809103,1.62677526,105100.0,105090.0,0.00124615]
[1750773809498,1.62777526,105100.0,105090.0,0.00124615]
[1750773809954,1.72324521,105100.0,105090.0,0.00124615]
[1750773810156,1.62777526,105100.0,105090.0,0.00124615]
[1750773810537,1.47244652,105100.0,105090.0,0.00124615]
[1750773810740,1.47344652,105100.0,105090.0,0.00124615]
[1750773810915,1.48798737,105100.0,105090.0,0.00124615]
[1750773811753,1.51008737,105100.0,105090.0,0.00124615]
[1750773811962,0.68554725,105100.0,105090.0,0.00124615]
[1750773812168,1.18684466,105100.0,105090.0,0.00124615]
[1750773814069,1.00606418,105100.0,105090.0,0.19155921]
[1750773814280,1.20587387,105100.0,105090.0,0.02434615]
[1750773814485,1.1963594,105100.0,105090.0,0.27189477]
[1750773814684,1.1963594,105100.0,105090.0,0.07206615]
[1750773814898,1.1963594,105100.0,105090.0,0.04896615]
[1750773815552,1.1963594,105100.0,105090.0,0.24879486]
[1750773815754,1.18684484,105100.0,105090.0,0.04896615]
[1750773816737,1.20864484,105100.0,105090.0,0.00124615]
[1750773817153,1.18684484,105100.0,105090.0,0.00124615]
[1750773818487,1.28694484,105100.0,105090.0,0.00124615]
[1750773818696,1.18084484,105100.0,105090.0,0.00024615]
[1750773818937,1.18084484,105100.0,105090.0,0.19055921]
[1750773819143,1.19235931,105100.0,105090.0,0.23219006]
[1750773819359,0.341,105100.0,105090.0,0.26390507]
[1750773819560,0.001,105100.0,105090.0,0.67752693]
[1750773819796,0.001,105100.0,105090.0,0.77752693]
[1750773820005,0.001,105100.0,105090.0,0.77852693]
[1750773820197,0.028583,105110.0,105100.0,0.76323809]
[1750773820367,0.028583,105110.0,105100.0,0.85873995]
[1750773820577,0.028583,105110.0,105100.0,1.08717995]
[1750773820771,0.91561342,105110.0,105100.0,0.78717995]
[1750773821023,0.74682075,105110.0,105100.0,0.99366584]
[1750773821163,0.57560424,105110.0,105100.0,1.30317995]
[1750773821379,0.58760424,105110.0,105100.0,1.30317995]
[1750773821578,0.57809085,105110.0,105100.0,1.30317995]
[1750773821766,0.56609085,105110.0,105100.0,1.30317995]
[1750773822179,0.57009085,105110.0,105100.0,1.30317995]
[1750773822411,0.57960433,105110.0,105100.0,1.30317995]
[1750773822616,0.58760433,105110.0,105100.0,1.30417995]
[1750773822850,0.59711799,105110.0,105100.0,1.30417995]
[1750773823194,0.58760433,105110.0,105100.0,1.30417995]
[1750773823865,0.57809085,105110.0,105100.0,1.30417995]
[1750773824055,0.56857756,105110.0,105100.0,1.30417995]
[1750773824185,0.57809076,105110.0,105100.0,1.30417995]
[1750773824598,0.58760424,105110.0,105100.0,1.30417995]
[1750773824824,0.5971179,105110.0,105100.0,1.30417995]
[1750773825025,0.60663165,105110.0,105100.0,1.30417995]
[1750773825250,0.79690932,105110.0,105100.0,1.30417995]
[1750773825905,0.60663247,105110.0,105100.0,1.30417995]
[1750773826151,0.78739548,105110.0,105100.0,1.30417995]
[1750773826298,0.58760488,105110.0,105100.0,1.30417995]
[1750773826748,0.78739557,105110.0,105100.0,0.45174]
[1750773826961,1.13156889,105110.0,105100.0,0.04872]
[1750773827151,1.13156889,105110.0,105100.0,0.001]
[1750773827152,1.85937194,105110.0,105100.0,0.001]
[1750773827389,2.02721194,105110.0,105100.0,0.001]
[1750773827830,0.53980951,105100.0,105090.0,0.04796615]
[1750773828028,1.05830005,105100.0,105090.0,0.04796615]
[1750773829485,1.05830005,105100.0,105090.0,0.04896615]
[1750773829710,1.06781452,105100.0,105090.0,0.23927921]
[1750773829915,1.06781452,105100.0,105090.0,0.40832684]
[1750773829916,0.00951393,105100.0,105090.0,0.40832684]
[1750773830118,0.35902804,105100.0,105090.0,0.41784185]
[1750773830318,0.34,105100.0,105090.0,0.41784185]
[1750773830549,0.34,105100.0,105090.0,0.71784185]
[1750773830767,0.34951393,105100.0,105090.0,0.71784185]
[1750773830972,0.34,105100.0,105090.0,0.71784185]
[1750773831167,0.001,105100.0,105090.0,0.71784185]
[1750773833664,0.001,105100.0,105090.0,0.96784185]
[1750773834047,0.002,105130.0,105120.0,0.59139646]
[1750773834245,0.030568,105130.0,105120.0,1.15405832]
[1750773834455,0.002,105130.0,105120.0,1.15405832]
[1750773835646,0.017,105130.0,105120.0,1.15605832]
[1750773836283,0.03,105130.0,105120.0,1.17059917]
[1750773836481,0.03,105130.0,105120.0,1.68908971]
[1750773836711,0.0001,105160.0,105140.0,0.89393305]
[1750773836938,0.0001,105160.0,105150.0,1.09240644]
[1750773837092,0.028661,105160.0,105150.0,1.20694729]
[1750773837509,0.0001,105160.0,105150.0,1.23845675]
[1750773837717,0.0031,105160.0,105150.0,1.23845675]
[1750773838076,0.00356152,105160.0,105150.0,1.23845675]
[1750773838962,0.01556152,105160.0,105150.0,1.24045675]
[1750773839168,0.01256152,105160.0,105150.0,1.23845675]
[1750773840439,0.01256152,105160.0,105150.0,1.23821675]
[1750773840643,0.01456152,105160.0,105150.0,1.23821675]
[1750773840848,0.00056152,105160.0,105150.0,0.9736359]
[1750773841054,0.00056152,105160.0,105150.0,0.6584359]
[1750773841256,0.00456152,105160.0,105150.0,0.9738359]
[1750773841674,0.00156152,105160.0,105150.0,0.9738359]
[1750773841849,0.00756152,105160.0,105150.0,0.98837675]
[1750773841983,0.00756152,105160.0,105150.0,1.50686729]
[1750773842614,0.00656152,105160.0,105150.0,1.50686729]
[1750773843062,0.00656152,105160.0,105150.0,0.98837675]
[1750773843273,0.00656152,105160.0,105150.0,1.50686729]
[1750773843501,0.00056152,105160.0,105150.0,1.50686729]
[1750773843712,0.00056152,105160.0,105150.0,0.98837675]
[1750773843921,0.00356152,105160.0,105150.0,1.50686729]
[1750773844364,0.00356152,105160.0,105150.0,1.02297675]
[1750773844576,0.00356152,105160.0,105150.0,0.9743559]
[1750773845258,0.00056152,105160.0,105150.0,0.9743559]
[1750773845471,0.00556152,105160.0,105150.0,0.9743559]
[1750773845895,0.01256152,105160.0,105150.0,0.9753559]
[1750773846328,0.01256152,105160.0,105150.0,1.50838729]
[1750773847145,0.01256152,105160.0,105150.0,0.98989675]
[1750773847636,0.01256152,105160.0,105150.0,1.50838729]
[1750773848107,0.009,105160.0,105150.0,1.55838729]
[1750773848529,0.009,105160.0,105150.0,1.03989675]
[1750773848730,0.009,105160.0,105150.0,1.55838729]
[1750773849152,0.007,105160.0,105150.0,1.23977675]
[1750773849590,0.007,105160.0,105150.0,1.75822729]
[1750773849813,0.007,105160.0,105150.0,2.14822729]
[1750773850134,0.00271939,105160.0,105150.0,2.19822729]
[1750773851120,0.0001,105180.0,105170.0,1.40079244]
[1750773851327,0.0021,105210.0,105200.0,0.02851602]
[1750773851545,0.00223173,105210.0,105200.0,1.18122333]
[1750773851971,0.00223173,105210.0,105200.0,0.66273279]
[1750773852087,0.00223173,105210.0,105200.0,0.98243194]
[1750773852289,0.00223173,105210.0,105200.0,1.15809194]
[1750773852718,0.52072227,105210.0,105200.0,0.71413194]
[1750773852936,0.41154493,105210.0,105200.0,0.89858687]
[1750773853139,0.92053086,105210.0,105200.0,0.90809194]
[1750773853548,0.36353173,105210.0,105200.0,0.90809194]
[1750773853769,0.34223173,105210.0,105200.0,0.90809194]
[1750773853980,0.35973589,105210.0,105200.0,0.90909194]
[1750773854208,0.35023173,105210.0,105200.0,0.91609194]
[1750773855031,0.35023173,105210.0,105200.0,1.06609194]
[1750773855231,0.34223173,105210.0,105200.0,1.06509194]
[1750773855443,0.3517358,105210.0,105200.0,1.06509194]
[1750773855650,0.34223173,105210.0,105200.0,1.06609194]
[1750773856079,0.3517358,105210.0,105200.0,0.68132153]
[1750773856290,1.19330154,105210.0,105200.0,0.90646687]
[1750773856493,0.34223173,105210.0,105200.0,0.91597194]
[1750773857334,0.34223173,105210.0,105200.0,1.06597194]
[1750773857536,0.35173589,105210.0,105200.0,1.06597194]
[1750773857773,0.34223173,105210.0,105200.0,1.06597194]
[1750773857996,0.36123996,105210.0,105200.0,1.06597194]
[1750773858200,0.35173571,105210.0,105200.0,1.06597194]
[1750773858403,0.34223173,105210.0,105200.0,1.06597194]
[1750773859469,0.36123987,105210.0,105200.0,1.06597194]
[1750773859667,0.38024891,105210.0,105200.0,1.06597194]
[1750773859885,1.20219783,105210.0,105200.0,0.54734186]
[1750773860104,1.20219783,105210.0,105200.0,0.45184]
[1750773861182,1.20219783,105210.0,105200.0,0.44384]
[1750773861418,1.20319783,105210.0,105200.0,0.46184]
[1750773861611,1.21301147,105210.0,105200.0,0.46984]
[1750773861832,1.23063879,105210.0,105200.0,0.46984]
[1750773862036,1.22182515,105210.0,105200.0,0.46984]
[1750773862601,1.22182515,105210.0,105200.0,0.65995406]
[1750773862803,1.20419783,105210.0,105200.0,0.46984]
[1750773863204,1.20419783,105210.0,105200.0,0.66945976]
[1750773863411,1.052158,105210.0,105200.0,0.69797569]
[1750773863631,0.64209798,105210.0,105200.0,0.69797569]
[1750773864085,0.45200199,105210.0,105200.0,0.70748076]
[1750773864234,0.45200199,105210.0,105200.0,0.85748076]
[1750773864436,1.0241533,105210.0,105200.0,0.85748076]
[1750773864734,0.43350091,105210.0,105200.0,0.85748076]
[1750773864947,0.43350073,105210.0,105200.0,0.85748076]
[1750773865181,0.41449187,105210.0,105200.0,1.10298262]
[1750773865391,1.25185761,105210.0,105200.0,0.46984]
[1750773865634,1.24168694,105210.0,105200.0,0.46984]
[1750773866050,1.24168694,105210.0,105200.0,0.66945967]
[1750773866273,1.24168694,105210.0,105200.0,0.6789651]
[1750773866691,1.05159095,105210.0,105200.0,0.68847035]
[1750773866909,1.25119335,105210.0,105200.0,0.68847035]
[1750773867326,1.25119335,105210.0,105200.0,0.66945967]
[1750773867739,1.25119335,105210.0,105200.0,0.67896519]
[1750773867962,1.2321844,105210.0,105200.0,0.46984]
[1750773868174,1.2321844,105210.0,105200.0,0.46972]
[1750773868395,1.2321844,105210.0,105190.0,0.04756]
[1750773868396,1.44586732,105210.0,105190.0,0.04756]
[1750773868612,1.90678389,105200.0,105190.0,2.474e-05]
[1750773868833,1.34624802,105200.0,105190.0,2.474e-05]
[1750773869540,1.37423297,105200.0,105190.0,0.00402474]
[1750773869754,1.37423297,105200.0,105190.0,0.00902474]
[1750773870407,1.37422586,105200.0,105190.0,0.00902474]
[1750773870615,1.3742102,105200.0,105190.0,0.00902474]
[1750773870756,1.3742102,105200.0,105190.0,2.474e-05]
[1750773870967,1.5432102,105200.0,105190.0,0.00802474]
[1750773871170,1.5432102,105200.0,105190.0,0.01302474]
[1750773872111,1.35259941,105200.0,105190.0,0.01302474]
[1750773872961,1.35258746,105200.0,105190.0,0.01302474]
[1750773873415,1.37515898,105200.0,105190.0,0.01302474]
[1750773873627,1.35258328,105200.0,105190.0,0.01302474]
[1750773874385,1.7788323,105200.0,105190.0,0.01302474]
[1750773876278,1.77000181,105200.0,105190.0,0.01302474]
[1750773876482,1.77881877,105200.0,105190.0,0.01302474]
[1750773876883,1.77880409,105200.0,105190.0,0.01302474]
[1750773877100,1.80736309,105200.0,105190.0,0.01302474]
[1750773878456,1.78091606,105200.0,105190.0,0.01302474]
[1750773878856,0.54916459,105180.0,105170.0,0.3182]
[1750773879064,1.1055195,105180.0,105170.0,0.36604]
[1750773879258,1.1055195,105180.0,105170.0,0.15]
[1750773879465,1.1055195,105180.0,105170.0,0.19784]
[1750773879723,0.21967652,105170.0,105160.0,0.2302]
[1750773879910,0.75683143,105170.0,105160.0,0.44628]
[1750773880120,0.91552424,105180.0,105170.0,0.35918448]
[1750773880425,0.368562,105180.0,105170.0,0.95624392]
[1750773880598,0.368562,105180.0,105170.0,0.97554392]
[1750773881015,0.3697004,105180.0,105170.0,0.75946392]
[1750773881211,0.3767004,105180.0,105170.0,0.97658392]
[1750773881412,0.38620709,105180.0,105170.0,0.97658392]
[1750773881616,0.39571405,105180.0,105170.0,0.97658392]
[1750773881792,0.93268334,105180.0,105170.0,0.88131412]
[1750773881997,0.93268324,105180.0,105170.0,0.88131412]
[1750773882610,0.92317601,105180.0,105170.0,0.88131412]
[1750773882775,0.904162,105180.0,105170.0,0.88131412]
[1750773882978,0.904162,105180.0,105170.0,0.90151412]
[1750773883310,0.92317601,105180.0,105170.0,0.90151412]
[1750773883490,0.91366887,105180.0,105170.0,0.90151412]
[1750773883909,0.3767004,105180.0,105170.0,0.90151412]
[1750773884083,0.39571387,105180.0,105170.0,0.90151412]
[1750773884328,0.40522092,105180.0,105170.0,0.68539412]
[1750773884577,1.14142008,105180.0,105170.0,0.04884]
[1750773887869,1.25146279,105180.0,105170.0,0.001]
[1750773888702,1.30946008,105180.0,105170.0,0.001]
[1750773888916,1.14042008,105180.0,105170.0,0.001]
[1750773889118,1.12122008,105180.0,105170.0,0.05084]
[1750773889343,1.12122008,105180.0,105170.0,0.2495167]
[1750773889344,1.11422008,105180.0,105170.0,0.2495167]
[1750773889550,1.10671294,105180.0,105170.0,0.25902493]
[1750773889761,0.38020745,105180.0,105170.0,0.42604076]
[1750773889988,0.3687004,105180.0,105170.0,0.52454262]
[1750773890196,0.38971405,105180.0,105170.0,0.54464262]
[1750773890400,0.3707004,105180.0,105170.0,0.54464262]
[1750773890840,0.0307004,105180.0,105170.0,0.69464262]
[1750773891047,0.0001384,105180.0,105170.0,0.71304262]
[1750773891257,0.0031384,105180.0,105170.0,0.81304262]
[1750773891472,0.0031384,105180.0,105170.0,1.06304262]
[1750773891691,0.0031384,105180.0,105170.0,1.59553838]
[1750773892152,0.0031384,105180.0,105170.0,1.07458347]
[1750773892775,0.0171384,105180.0,105170.0,1.07458347]
[1750773892985,0.0141384,105180.0,105170.0,1.07458347]
[1750773893208,0.0001384,105180.0,105170.0,1.07558347]
[1750773893426,0.0061384,105180.0,105170.0,1.07558347]
[1750773893636,0.0061384,105180.0,105170.0,1.64353838]
[1750773893854,0.0141384,105180.0,105170.0,1.64353838]
[1750773894274,0.0141384,105180.0,105170.0,1.12558347]
[1750773895005,0.0141384,105180.0,105170.0,1.73518767]
[1750773895868,0.0141384,105180.0,105170.0,1.73618767]
[1750773896084,0.0021,105210.0,105200.0,0.86863008]
[1750773896305,0.0021,105210.0,105200.0,1.19945194]
[1750773896525,0.0021,105210.0,105200.0,1.21855194]
[1750773898473,0.0161,105210.0,105200.0,1.21855194]
[1750773898893,0.0241,105210.0,105200.0,1.23409279]
[1750773900417,0.0241,105210.0,105200.0,1.21955194]
[1750773901262,0.0241,105210.0,105200.0,1.23409279]
[1750773901480,0.0241,105210.0,105200.0,1.94369699]
[1750773901699,0.0241,105210.0,105200.0,1.99369699]
[1750773901921,0.0241,105210.0,105200.0,1.11817279]
[1750773902170,0.0241,105210.0,105200.0,1.33361279]
[1750773902386,0.0161,105210.0,105200.0,1.99221699]
[1750773902601,0.0061,105210.0,105200.0,1.38261279]
[1750773902816,0.0061,105210.0,105200.0,1.99221699]
[1750773903035,0.0091,105210.0,105200.0,1.99321699]
[1750773904364,0.00724301,105210.0,105200.0,2.33321699]
[1750773904588,0.00016,105220.0,105210.0,0.96125013]
[1750773904810,0.00029835,105220.0,105210.0,1.99451619]
[1750773905262,0.0021,105230.0,105220.0,1.97927595]
[1750773905491,0.0001,105240.0,105230.0,0.9231086]
[1750773905730,0.0001,105240.0,105230.0,1.72013704]
[1750773905950,0.0001,105240.0,105230.0,1.82013704]
[1750773906228,0.0021,105250.0,105240.0,1.27308782]
[1750773906471,0.0021,105250.0,105240.0,2.33533247]
[1750773906683,0.0021,105250.0,105240.0,2.31035626]
[1750773906896,0.0021,105250.0,105240.0,2.28521388]
[1750773907125,0.0021,105250.0,105240.0,1.67560968]
[1750773907348,0.0021,105250.0,105240.0,2.28521388]
[1750773907771,0.0021,105250.0,105240.0,1.67560968]
[1750773908010,0.0021,105250.0,105240.0,2.28521388]
[1750773908444,0.0021,105250.0,105240.0,2.33521388]
[1750773909133,0.0031,105250.0,105240.0,2.36432042]
[1750773909369,0.0031,105250.0,105240.0,2.19560042]
[1750773909594,0.002,105270.0,105260.0,1.34290546]
[1750773909812,0.002,105270.0,105260.0,2.56067237]
[1750773910042,0.0178024,105290.0,105280.0,2.20366814]
[1750773910274,0.01794071,105290.0,105280.0,2.63615085]
[1750773910484,0.01794071,105290.0,105280.0,2.43885323]
[1750773910696,0.01794071,105290.0,105280.0,2.07670524]
[1750773910909,0.01794071,105290.0,105280.0,2.69561102]
[1750773911125,0.01794071,105290.0,105280.0,2.67046864]
[1750773911350,0.01794071,105290.0,105280.0,2.64549243]
[1750773911571,0.01794071,105290.0,105280.0,2.42301243]
[1750773911785,0.01894071,105290.0,105280.0,2.66284706]
[1750773911995,0.01894071,105290.0,105280.0,1.75510665]
[1750773912199,0.01894071,105290.0,105280.0,2.58799085]
[1750773912408,0.01894071,105290.0,105280.0,1.41510665]
[1750773912619,0.01894071,105290.0,105280.0,1.62730665]
[1750773912828,0.01894071,105290.0,105280.0,1.1649658]
[1750773913036,0.01894071,105290.0,105280.0,1.3923258]
[1750773913464,0.01894071,105290.0,105280.0,1.42636665]
[1750773913729,0.01894071,105290.0,105280.0,2.10647085]
[1750773913955,0.01894071,105290.0,105280.0,1.49686665]
[1750773914174,0.01894071,105290.0,105280.0,1.47636665]
[1750773915786,0.05864071,105290.0,105280.0,1.1649658]
[1750773915993,0.01894071,105290.0,105280.0,1.6205658]
[1750773916860,0.01894071,105290.0,105280.0,1.3929258]
[1750773917290,0.01794071,105290.0,105280.0,1.6196458]
[1750773917716,0.02194071,105290.0,105280.0,1.6206458]
[1750773918602,0.61604796,105290.0,105280.0,1.3706858]
[1750773918841,0.08043468,105290.0,105280.0,1.3706858]
[1750773919076,0.60655111,105290.0,105280.0,1.3706858]
[1750773919317,0.08443468,105290.0,105280.0,1.3706858]
[1750773919741,0.09393207,105290.0,105280.0,1.3706858]
[1750773919957,0.06544071,105290.0,105280.0,1.3710858]
[1750773921034,0.02594071,105290.0,105280.0,1.3710858]
[1750773921246,0.02594071,105290.0,105280.0,1.3710058]
[1750773921754,0.02594071,105290.0,105280.0,2.38262578]
[1750773921973,0.01163161,105290.0,105280.0,2.53262578]
[1750773922418,0.0001,105300.0,105290.0,0.92298404]
[1750773922638,0.0001,105300.0,105290.0,1.67500503]
[1750773922858,0.0001,105300.0,105290.0,1.75097483]
[1750773923095,0.0001,105300.0,105290.0,1.77595825]
[1750773923314,0.0001,105300.0,105290.0,1.75097483]
[1750773924182,0.0001,105300.0,105290.0,1.67500503]
[1750773925035,0.0001,105300.0,105290.0,1.67900503]
[1750773925263,0.0011,105300.0,105290.0,1.40794505]
[1750773925488,0.0011,105300.0,105290.0,1.19586505]
[1750773925708,0.0011,105300.0,105290.0,1.42514505]
[1750773925932,0.0011,105300.0,105290.0,1.19586505]
[1750773926366,0.0011,105300.0,105290.0,1.42522505]
[1750773926581,0.0011,105300.0,105290.0,1.94184418]
[1750773926794,0.0011,105300.0,105290.0,1.4897659]
[1750773927034,0.0011,105300.0,105290.0,2.00634503]
[1750773927441,0.0011,105300.0,105290.0,2.02524503]
[1750773927931,0.0001,105300.0,105290.0,2.02124503]
[1750773928167,0.0011,105300.0,105290.0,2.02224503]
[1750773928421,0.0011,105300.0,105290.0,1.5076259]
[1750773928634,0.0011,105300.0,105290.0,1.2594059]
[1750773928839,0.0011,105300.0,105290.0,1.4887259]
[1750773929047,0.0011,105300.0,105290.0,1.2094059]
[1750773929282,0.0011,105300.0,105290.0,1.4389659]
[1750773929496,0.0011,105300.0,105290.0,1.95558503]
[1750773929707,0.0011,105300.0,105290.0,1.4369259]
[1750773929918,0.0021,105300.0,105290.0,1.4369259]
[1750773930124,0.0021,105300.0,105290.0,1.2074059]
[1750773930333,0.0021,105300.0,105290.0,1.4370059]
[1750773930960,0.0021,105300.0,105290.0,1.2074059]
[1750773931176,0.0021,105300.0,105290.0,1.4367659]
[1750773931387,0.0021,105300.0,105290.0,1.2074059]
[1750773931609,0.0403,105300.0,105290.0,1.42214505]
[1750773932049,0.068819,105300.0,105290.0,1.42214505]
[1750773932397,0.067819,105300.0,105290.0,1.42114505]